fUST/lending_fUST_20240711
["ID","MTS","AMOUNT","RATE_DAILY","PERIOD"]
[331691863,1720648243843,-539.89242226,0.00027187,2]
[331691864,1720648243857,-155.43553926,0.00029803,2]
[331691865,1720648243869,-359.00222009,0.00032702,2]
[331691866,1720648243883,-402.86116113,0.00032876,2]
[331691867,1720648243897,-500.0,0.00032876,7]
[331691868,1720648243910,-1114.73,0.00032876,7]
[331691869,1720648243923,-500.0,0.00032876,7]
[331691870,1720648243935,-507.3995866,0.00032876,7]
[331691871,1720648243946,-504.94315929,0.00032876,7]
[331691872,1720648243957,-500.0,0.00032876,7]
[331691873,1720648243970,-500.0,0.00032876,7]
[331691874,1720648243983,-500.0,0.00032876,7]
[331691875,1720648243994,-500.0,0.00032876,7]
[331691876,1720648244006,-500.0,0.00032876,7]
[331691877,1720648244016,-506.70035547,0.00032876,7]
[331691878,1720648244028,-105.00611364,0.00032876,7]
[331691879,1720648244042,-394.99388636,0.00032876,7]
[331691880,1720648244054,-500.0,0.00032876,7]
[331691881,1720648244067,-506.08824838,0.00032876,7]
[331691882,1720648244080,-1044.04806379,0.00032876,7]
[331691883,1720648244096,-463.61193621,0.00032876,7]
[331691884,1720648244111,-500.0,0.00032876,7]
[331691885,1720648244125,-60.76021318,0.00032876,7]
[331691886,1720648244140,-439.23978682,0.00032876,7]
[331691887,1720648244150,-500.0,0.00032876,7]
[331691888,1720648244160,-500.0,0.00032876,7]
[331691889,1720648244170,-500.0,0.00032876,7]
[331691890,1720648244182,-500.0,0.00032876,7]
[331691891,1720648244195,-151.0,0.00032876,7]
[331691892,1720648244209,-151.0,0.00032876,7]
[331691893,1720648244222,-151.0,0.00032876,7]
[331691894,1720648244232,-18.22430035,0.00032876,7]
[331691895,1720648244249,-378.67841742,0.00032876,7]
[331691896,1720648244261,-151.0,0.00032876,7]
[331691897,1720648244272,-151.0,0.00032876,7]
[331691898,1720648244284,-151.0,0.00032876,7]
[331691899,1720648244295,-729.04,0.00032876,7]
[331691900,1720648244306,-500.0,0.00032876,7]
[331691901,1720648244316,-431.78158258,0.00032876,7]
[331691915,1720648246826,-191.04644475,0.00020668,2]
[331691916,1720648246838,-1094.24687878,0.00028972,2]
[331691917,1720648246850,-412.88555985,0.0002987,2]
[331691918,1720648246862,-6497.8,0.00032866,3]
[331691919,1720648246873,-68.21841742,0.00032876,7]
[331691920,1720648246884,-350.03577873,0.00032876,7]
[331691921,1720648246898,-704.0,0.00032876,7]
[331691922,1720648246909,-433.16515063,0.00032876,7]
[331691923,1720648246921,-500.0,0.00032876,7]
[331691924,1720648246932,-511.18774902,0.00032876,7]
[331691925,1720648246943,-500.0,0.00032876,7]
[331691926,1720648246955,-890.09,0.00032876,7]
[331691927,1720648246966,-501.61520268,0.00032876,7]
[331691928,1720648246977,-500.0,0.00032876,7]
[331691929,1720648246988,-500.0,0.00032876,7]
[331691930,1720648246999,-192.85334231,0.00032876,7]
[331691931,1720648247010,-500.0,0.00032876,7]
[331691932,1720648247021,-513.95739066,0.00032876,7]
[331691933,1720648247032,-500.0,0.00032876,7]
[331691934,1720648247044,-500.0,0.00032876,7]
[331691935,1720648247055,-500.0,0.00032876,7]
[331691936,1720648247066,-500.0,0.00032876,7]
[331691937,1720648247076,-500.0,0.00032876,7]
[331691938,1720648247088,-151.0,0.00032876,7]
[331691939,1720648247099,-500.0,0.00032876,7]
[331691940,1720648247110,-151.0,0.00032876,7]
[331691941,1720648247122,-151.0,0.00032876,7]
[331691942,1720648247134,-151.0,0.00032876,7]
[331691943,1720648247146,-227.51724818,0.00032876,7]
[331691944,1720648247157,-151.0,0.00032876,7]
[331691945,1720648247168,-505.11626214,0.00032876,7]
[331691946,1720648247179,-507.98358814,0.00032876,7]
[331691947,1720648247189,-500.0,0.00032876,7]
[331691948,1720648247198,-500.0,0.00032876,7]
[331691949,1720648247208,-151.0,0.00032876,7]
[331691950,1720648247218,-156.270022,0.00032876,7]
[331691951,1720648247227,-500.0,0.00032876,7]
[331691952,1720648247236,-509.1633017,0.00032876,7]
[331691953,1720648247246,-448.45902527,0.00032876,7]
[331691954,1720648247255,-500.0,0.00032876,7]
[331691955,1720648247264,-500.0,0.00032876,7]
[331691956,1720648247274,-759.868347,0.00032876,7]
[331691957,1720648247284,-759.868347,0.00032876,7]
[331691958,1720648247293,-759.868347,0.00032876,7]
[331691959,1720648247303,-284.571136,0.00032876,7]
[331691960,1720648247313,-759.868347,0.00032876,7]
[331691961,1720648247474,-284.571136,0.00032876,7]
[331691962,1720648247485,-759.868347,0.00032876,7]
[331691963,1720648247495,-759.868347,0.00032876,7]
[331691964,1720648247504,-284.571136,0.00032876,7]
[331691965,1720648247514,-151.0,0.00032876,2]
[331691966,1720648247524,-151.0,0.00032876,2]
[331691967,1720648247533,-151.0,0.00032876,2]
[331691968,1720648247542,-284.571136,0.00032876,7]
[331691969,1720648247551,-284.571136,0.00032876,7]
[331691970,1720648247560,-284.571136,0.00032876,7]
[331691971,1720648247569,-317.49296519,0.00032876,7]
[331691972,1720648247578,-500.0,0.00032876,7]
[331691973,1720648247587,-500.0,0.00032876,7]
[331691974,1720648247596,-500.0,0.00032876,7]
[331691975,1720648247606,-500.0,0.00032876,7]
[331691976,1720648247616,-500.0,0.00032876,7]
[331691977,1720648247625,-500.0,0.00032876,7]
[331691978,1720648247634,-500.0,0.00032876,7]
[331691979,1720648247643,-500.0,0.00032876,7]
[331691980,1720648247654,-500.0,0.00032876,7]
[331691981,1720648247663,-500.0,0.00032876,7]
[331691982,1720648247671,-500.0,0.00032876,7]
[331691983,1720648247680,-434.63536106,0.00032876,7]
[331691984,1720648247689,-500.0,0.00032876,7]
[331691985,1720648247698,-500.0,0.00032876,7]
[331691986,1720648247708,-500.0,0.00032876,7]
[331691987,1720648247717,-1019.03,0.00032876,7]
[331691988,1720648247726,-513.40325431,0.00032876,7]
[331691989,1720648247734,-500.0,0.00032876,7]
[331691990,1720648247743,-500.0,0.00032876,7]
[331691991,1720648247752,-177.31233051,0.00032876,7]
[331691992,1720648247761,-500.0,0.00032876,7]
[331691993,1720648247770,-483.54338481,0.00032876,7]
[331691994,1720648247779,-500.0,0.00032876,7]
[331691995,1720648247789,-506.45487658,0.00032876,18]
[331691996,1720648247798,-500.0,0.00032876,7]
[331691997,1720648247807,-509.68907424,0.00032876,7]
[331691998,1720648247816,-531.85271817,0.00032876,7]
[331691999,1720648247825,-500.0,0.00032876,7]
[331692000,1720648247834,-500.0,0.00032876,7]
[331692001,1720648247845,-500.0,0.00032876,7]
[331692002,1720648247855,-500.0,0.00032876,7]
[331692003,1720648247865,-517.43145766,0.00032876,7]
[331692004,1720648247875,-500.0,0.00032876,7]
[331692005,1720648247884,-500.0,0.00032876,7]
[331692006,1720648247893,-500.0,0.00032876,7]
[331692007,1720648247903,-500.0,0.00032876,7]
[331692008,1720648247912,-151.0,0.00032876,7]
[331692009,1720648247922,-151.0,0.00032876,7]
[331692010,1720648247931,-151.0,0.00032876,7]
[331692011,1720648247941,-500.0,0.00032876,7]
[331692012,1720648247950,-507.47269735,0.00032876,7]
[331692013,1720648247959,-774.92,0.00032876,7]
[331692014,1720648247968,-151.0,0.00032876,7]
[331692015,1720648247977,-151.0,0.00032876,7]
[331692016,1720648247986,-3883.38,0.00032876,7]
[331692017,1720648247995,-151.0,0.00032876,7]
[331692018,1720648248004,-500.0,0.00032876,7]
[331692019,1720648248013,-525.33536502,0.00032876,7]
[331692020,1720648248022,-151.0,0.00032876,7]
[331692021,1720648248031,-151.0,0.00032876,7]
[331692022,1720648248040,-151.0,0.00032876,7]
[331692023,1720648248049,-200.0,0.00032876,7]
[331692024,1720648248058,-2078.19,0.00032876,7]
[331692025,1720648248067,-500.0,0.00032876,7]
[331692026,1720648248076,-500.0,0.00032876,7]
[331692027,1720648248085,-507.29056014,0.00032876,7]
[331692028,1720648248094,-500.0,0.00032876,7]
[331692029,1720648248103,-500.0,0.00032876,7]
[331692030,1720648248113,-500.0,0.00032876,7]
[331692031,1720648248122,-636.13,0.00032876,7]
[331692032,1720648248132,-501.01563599,0.00032876,7]
[331692033,1720648248141,-562.45524875,0.00032876,7]
[331692034,1720648248151,-504.58220274,0.00032876,7]
[331692035,1720648248161,-500.0,0.00032876,7]
[331692036,1720648248170,-500.0,0.00032876,7]
[331692037,1720648248179,-500.0,0.00032876,7]
[331692038,1720648248190,-837.14,0.00032876,7]
[331692039,1720648248199,-500.0,0.00032876,7]
[331692040,1720648248208,-500.0,0.00032876,7]
[331692041,1720648248217,-500.0,0.00032876,7]
[331692042,1720648248226,-155.42735479,0.00032876,7]
[331692043,1720648248235,-932.74,0.00032876,7]
[331692044,1720648248245,-151.0,0.00032876,7]
[331692045,1720648248255,-151.0,0.00032876,7]
[331692046,1720648248266,-151.0,0.00032876,7]
[331692047,1720648248275,-225.16732668,0.00032876,7]
[331692048,1720648248284,-506.28613852,0.00032876,7]
[331692049,1720648248293,-151.0,0.00032876,7]
[331692050,1720648248303,-500.0,0.00032876,7]
[331692051,1720648248312,-305.171476,0.00032876,7]
[331692052,1720648248321,-151.0,0.00032876,7]
[331692053,1720648248331,-305.171476,0.00032876,7]
[331692054,1720648248340,-151.0,0.00032876,7]
[331692055,1720648248350,-500.0,0.00032876,7]
[331692056,1720648248359,-500.0,0.00032876,7]
[331692057,1720648248368,-305.171476,0.00032876,7]
[331692058,1720648248379,-313.91983114,0.00032876,7]
[331692059,1720648248389,-1500.0,0.00032876,7]
[331692060,1720648248398,-305.171476,0.00032876,7]
[331692061,1720648248408,-305.171476,0.00032876,7]
[331692062,1720648248417,-305.171476,0.00032876,7]
[331692063,1720648248427,-500.0,0.00032876,7]
[331692064,1720648248436,-500.0,0.00032876,7]
[331692065,1720648248446,-470.88822629,0.00032876,7]
[331692066,1720648248455,-500.0,0.00032876,7]
[331692067,1720648248464,-500.0,0.00032876,7]
[331692068,1720648248473,-500.0,0.00032876,7]
[331692069,1720648248482,-517.21036201,0.00032876,7]
[331692070,1720648248492,-500.0,0.00032876,7]
[331692071,1720648248501,-500.0,0.00032876,7]
[331692072,1720648248510,-500.0,0.00032876,7]
[331692073,1720648248520,-440.91210531,0.00032876,7]
[331692074,1720648248529,-540.14783103,0.00032876,7]
[331692075,1720648248538,-647.46968399,0.00032876,7]
[331692076,1720648248547,-516.79715429,0.00032876,7]
[331692077,1720648248557,-500.0,0.00032876,7]
[331692078,1720648248566,-6329.19,0.00032876,2]
[331692079,1720648248575,-6329.19,0.00032876,2]
[331692080,1720648248584,-6329.19,0.00032876,2]
[331692081,1720648248594,-500.0,0.00032876,7]
[331692082,1720648248603,-6329.19,0.00032876,2]
[331692083,1720648248612,-6329.19,0.00032876,2]
[331692084,1720648248621,-6329.19,0.00032876,2]
[331692085,1720648248631,-6329.19,0.00032876,2]
[331692086,1720648248639,-6329.19,0.00032876,2]
[331692087,1720648248648,-1403.51,0.00032876,7]
[331692088,1720648248658,-6329.19,0.00032876,2]
[331692089,1720648248667,-6329.19,0.00032876,2]
[331692090,1720648248676,-6329.19,0.00032876,2]
[331692091,1720648248686,-6329.19,0.00032876,2]
[331692092,1720648248695,-6329.19,0.00032876,2]
[331692093,1720648248704,-6329.19,0.00032876,2]
[331692094,1720648248714,-721.77477828,0.00032876,2]
[331692141,1720649174481,19424.96642795,0.00016255,2]
[331692142,1720649226114,-191.16817144,0.00018798,2]
[331692143,1720649226135,-187.500003,0.00021096,2]
[331692144,1720649226158,-250.0,0.00022718,2]
[331692145,1720649226182,-250.0,0.000233,2]
[331692146,1720649226206,-300.0,0.00023909,2]
[331692147,1720649226231,-300.0,0.00023909,2]
[331692148,1720649226253,-7443.1231027,0.0002391,2]
[331692149,1720649226274,-166.666666,0.00024071,2]
[331692150,1720649226297,-1399.7295083,0.00024112,2]
[331692151,1720649226321,-166.666666,0.00024728,2]
[331692152,1720649226341,-252.40548947,0.00025077,2]
[331692153,1720649226364,-229.22032487,0.00025096,2]
[331692154,1720649226386,-202.65775004,0.00025134,2]
[331692155,1720649226411,-4835.86164873,0.00025216,2]
[331692157,1720649351097,-180.545394,0.00021096,2]
[331692158,1720649369107,-102.091199,0.00021096,2]
[331692159,1720649369128,-150.0,0.00023116,2]
[331692160,1720649369149,-150.51832639,0.00024029,2]
[331692218,1720649432002,-11.25164561,0.00024029,2]
[331692220,1720649432011,-428.33485551,0.00024029,2]
[331692222,1720649432020,-261.31008176,0.00024029,2]
[331692344,1720649437862,-1738.68991824,0.00024029,2]
[331692345,1720649437871,-763.93203298,0.00024029,2]
[331692347,1720649437881,-268.4967465,0.00024029,2]
[331692348,1720649437893,-2467.33772792,0.00024029,2]
[331692349,1720649437902,-225.75818488,0.00024029,2]
[331692350,1720649437911,-2000.0,0.00024029,2]
[331692351,1720649437921,-24900.0,0.00024219,2]
[331692352,1720649437930,-265.467276,0.00024346,2]
[331692353,1720649437938,-300.0,0.00025215,2]
[331692354,1720649437948,-300.0,0.00025215,2]
[331692355,1720649437957,-166.666666,0.00025384,2]
[331692356,1720649437967,-689.0163869,0.00025391,2]
[331692357,1720649437976,-532.54,0.00025491,3]
[331692358,1720649437986,-874.76,0.00025491,3]
[331692359,1720649437995,-52142.01242753,0.00025501,2]
[331692360,1720649438004,-30000.0,0.00025501,2]
[331692361,1720649438014,-620.02206438,0.00025686,2]
[331692362,1720649438024,-162.161954,0.00025851,2]
[331692363,1720649438033,-74879.2084786,0.00025859,3]
[331692364,1720649438043,-166.666666,0.0002604,2]
[331692365,1720649438052,-4776.24202777,0.00026372,5]
[331692366,1720649438062,-3230.3909623,0.00026372,2]
[331692367,1720649438071,-166.666666,0.00026696,2]
[331692368,1720649438081,-725.50158015,0.00026848,2]
[331692369,1720649438090,-689.01638687,0.00027189,2]
[331692370,1720649438099,-282.636593,0.00027195,2]
[331692371,1720649438109,-300.0,0.0002731,2]
[331692372,1720649438118,-166.666666,0.00027353,2]
[331692373,1720649438128,-154.69833824,0.00027399,2]
[331692374,1720649438137,-620.45338949,0.00027616,2]
[331692375,1720649438147,-420.0,0.00027736,2]
[331692376,1720649438157,-12326.060162,0.00027899,2]
[331692377,1720649438166,-229.31696231,0.00028,30]
[331692378,1720649438176,-689.01638687,0.00028986,2]
[331692379,1720649438186,-620.02266947,0.00028997,2]
[331692380,1720649438197,-453.22022894,0.00029,2]
[331692381,1720649438206,-150.5,0.00029076,62]
[331692382,1720649438218,-150.5,0.00029086,62]
[331692383,1720649438228,-150.5,0.00029096,62]
[331692384,1720649438239,-500.0,0.00029104,2]
[331692385,1720649438249,-500.0,0.00029104,2]
[331692386,1720649438259,-500.0,0.00029104,2]
[331692387,1720649438269,-500.0,0.00029104,2]
[331692388,1720649438278,-192.39470163,0.00029104,2]
[331692389,1720649438288,-500.0,0.00029104,2]
[331692390,1720649438298,-596.37811993,0.00029104,2]
[331692391,1720649438307,-500.0,0.00029104,2]
[331692392,1720649438317,-500.0,0.00029104,2]
[331692393,1720649438327,-500.0,0.00029104,2]
[331692394,1720649438336,-500.0,0.00029104,2]
[331692395,1720649438346,-596.37811993,0.00029104,2]
[331692396,1720649438356,-500.0,0.00029104,2]
[331692397,1720649438366,-500.0,0.00029104,2]
[331692398,1720649438375,-500.0,0.00029104,2]
[331692399,1720649438385,-500.0,0.00029104,2]
[331692400,1720649438394,-596.37811993,0.00029104,2]
[331692401,1720649438404,-500.0,0.00029104,2]
[331692402,1720649438414,-500.0,0.00029104,2]
[331692403,1720649438424,-505.66003821,0.00029104,2]
[331692404,1720649438433,-596.37811993,0.00029104,2]
[331692405,1720649438443,-500.0,0.00029104,2]
[331692406,1720649438452,-500.0,0.00029104,2]
[331692407,1720649438462,-282.06803579,0.00029104,2]
[331692408,1720649438472,-588.01167832,0.00029104,2]
[331692409,1720649438482,-596.37811993,0.00029104,2]
[331692410,1720649438492,-500.0,0.00029104,2]
[331692411,1720649438501,-500.0,0.00029104,2]
[331692412,1720649438510,-596.37811993,0.00029104,2]
[331692413,1720649438519,-628.01209504,0.00029104,2]
[331692414,1720649438529,-596.37811993,0.00029104,2]
[331692415,1720649438539,-500.0,0.00029104,2]
[331692416,1720649438548,-596.37811993,0.00029104,2]
[331692417,1720649438557,-500.0,0.00029104,2]
[331692418,1720649438567,-596.37811993,0.00029104,2]
[331692419,1720649438577,-596.37811993,0.00029104,2]
[331692420,1720649438587,-500.0,0.00029104,2]
[331692421,1720649438598,-596.37811993,0.00029104,2]
[331692422,1720649438608,-648.88431547,0.00029104,2]
[331692423,1720649438619,-596.37811993,0.00029104,2]
[331692424,1720649438630,-596.37811993,0.00029104,2]
[331692425,1720649438640,-596.37811993,0.00029104,2]
[331692426,1720649438650,-596.37811993,0.00029104,2]
[331692427,1720649438660,-596.37811993,0.00029104,2]
[331692428,1720649438670,-596.37811993,0.00029104,2]
[331692429,1720649438680,-596.37811993,0.00029104,2]
[331692430,1720649438691,-596.37811993,0.00029104,2]
[331692431,1720649438700,-596.37811993,0.00029104,2]
[331692432,1720649438710,-596.37811993,0.00029104,2]
[331692433,1720649438720,-596.37811993,0.00029104,2]
[331692434,1720649438730,-596.37811993,0.00029104,2]
[331692435,1720649438740,-596.37811993,0.00029104,2]
[331692436,1720649438750,-596.37811993,0.00029104,2]
[331692437,1720649438760,-596.37811993,0.00029104,2]
[331692438,1720649438770,-596.37811993,0.00029104,2]
[331692439,1720649438780,-596.37811993,0.00029104,2]
[331692440,1720649438790,-596.37811993,0.00029104,2]
[331692441,1720649438799,-596.37811993,0.00029104,2]
[331692442,1720649438810,-596.37811993,0.00029104,2]
[331692443,1720649438820,-596.37811993,0.00029104,2]
[331692444,1720649438830,-596.37811993,0.00029104,2]
[331692445,1720649438840,-596.37811993,0.00029104,2]
[331692446,1720649438850,-596.37811993,0.00029104,2]
[331692447,1720649438860,-596.37811993,0.00029104,2]
[331692448,1720649438869,-596.37811993,0.00029104,2]
[331692449,1720649438878,-596.37811993,0.00029104,2]
[331692450,1720649438888,-596.37811993,0.00029104,2]
[331692451,1720649438897,-596.37811993,0.00029104,2]
[331692452,1720649438906,-596.37811993,0.00029104,2]
[331692453,1720649438916,-596.37811993,0.00029104,2]
[331692454,1720649438925,-596.37811993,0.00029104,2]
[331692455,1720649438935,-596.37811993,0.00029104,2]
[331692456,1720649438945,-596.37811993,0.00029104,2]
[331692457,1720649438955,-596.37811993,0.00029104,2]
[331692458,1720649438964,-596.37811993,0.00029104,2]
[331692459,1720649438974,-596.37811993,0.00029104,2]
[331692460,1720649438984,-596.37811993,0.00029104,2]
[331692461,1720649438993,-596.37811993,0.00029104,2]
[331692462,1720649439003,-596.37811993,0.00029104,2]
[331692463,1720649439012,-596.37811993,0.00029104,2]
[331692464,1720649439023,-596.37811993,0.00029104,2]
[331692465,1720649439033,-596.37811993,0.00029104,2]
[331692466,1720649439043,-596.37811993,0.00029104,2]
[331692467,1720649439053,-74879.2084786,0.00029106,3]
[331692468,1720649439062,-12326.060162,0.00029116,2]
[331692469,1720649439072,-74879.2084786,0.00029793,3]
[331692470,1720649439081,-195.31716393,0.00029813,2]
[331692471,1720649439091,-156.37674716,0.00029813,2]
[331692472,1720649439101,-268.65851187,0.00029813,2]
[331692473,1720649439110,-74879.2084786,0.0002986,3]
[331692474,1720649439120,-308.51871438,0.00029879,2]
[331692475,1720649439130,-240.12803383,0.00029879,2]
[331692476,1720649439140,-240.12803383,0.00029879,2]
[331692477,1720649439149,-170.94135721,0.00029901,2]
[331692478,1720649439158,-480.66437544,0.00029904,2]
[331692479,1720649439168,-480.66437544,0.00029904,2]
[331692480,1720649439177,-492.47001549,0.00029979,2]
[331692481,1720649439187,-322.17771164,0.00029979,2]
[331692482,1720649439196,-173.14965076,0.00029987,2]
[331692483,1720649439206,-230.5509408,0.00029987,2]
[331692484,1720649439215,-500.0,0.00029987,2]
[331692485,1720649439224,-154.40893818,0.00029987,2]
[331692486,1720649439235,-500.0,0.00029987,2]
[331692487,1720649439245,-288.64343489,0.00029987,2]
[331692488,1720649439254,-500.0,0.00029987,2]
[331692489,1720649439264,-500.0,0.00029987,2]
[331692490,1720649439273,-500.0,0.00029987,2]
[331692491,1720649439283,-500.0,0.00029987,2]
[331692492,1720649439292,-500.0,0.00029987,2]
[331692493,1720649439302,-500.0,0.00029987,2]
[331692494,1720649439311,-500.0,0.00029987,2]
[331692495,1720649439320,-74879.2084786,0.00029988,4]
[331692496,1720649439329,-229.22032487,0.00029999,2]
[331692497,1720649439339,-154.62117811,0.00029999,2]
[331692498,1720649439348,-170.47875529,0.0003,4]
[331692499,1720649439358,-8550.96884589,0.0003,5]
[331692500,1720649439367,-11239.65358693,0.0003,4]
[331692501,1720649439377,-193.69798923,0.00030229,4]
[331692502,1720649439386,-208.83853644,0.00030229,4]
[331692503,1720649439396,-215.08807012,0.00030229,4]
[331692504,1720649439406,-12326.060162,0.00030333,2]
[331692505,1720649439415,-620.00113347,0.00030446,2]
[331692506,1720649439425,-689.01638687,0.00030784,2]
[331692507,1720649439435,-371.36715798,0.00031251,4]
[331692508,1720649439445,-151.0,0.00031508,4]
[331692509,1720649439454,-12326.060162,0.00031549,2]
[331692510,1720649439464,-620.00005667,0.00031969,2]
[331692511,1720649439473,-151.0,0.00031974,4]
[331692512,1720649439483,-1003.81465551,0.00032,120]
[331692513,1720649439492,-1406.0,0.00032183,2]
[331692514,1720649439501,-426.80021744,0.00032229,4]
[331692515,1720649439511,-270.06862012,0.00032229,4]
[331692516,1720649439521,-248.60482369,0.00032272,4]
[331692517,1720649439531,-157.66523315,0.00032272,4]
[331692518,1720649439541,-151.0,0.00032439,4]
[331692519,1720649439551,-453.138189,0.00032505,7]
[331692520,1720649439561,-192.862484,0.00032505,7]
[331692521,1720649439570,-453.138189,0.00032505,7]
[331692522,1720649439580,-192.862484,0.00032505,7]
[331692523,1720649439590,-151.0,0.00032505,7]
[331692524,1720649439599,-151.0,0.00032505,7]
[331692525,1720649439609,-689.01638687,0.00032582,2]
[331692527,1720649439619,-366.6405652,0.0003264,2]
[331692529,1720649439628,-88888.0,0.00032735,5]
[331692531,1720649439638,-5292.88975486,0.00032741,2]
[331692533,1720649439647,-300.0,0.00032742,2]
[331692534,1720649439656,-12326.060162,0.00032766,2]
[331692536,1720649439666,-150.0,0.000328,13]
[331692538,1720649439675,-300.75929111,0.00032814,2]
[331692540,1720649439685,-293.419543,0.00032866,7]
[331692541,1720649439695,-151.0,0.00032866,7]
[331692542,1720649439705,-250.338425,0.00032866,7]
[331692543,1720649439714,-151.0,0.00032866,7]
[331692544,1720649439724,-283.73,0.00032866,7]
[331692545,1720649439733,-188.67344,0.00032866,7]
[331692547,1720649439743,-151.0,0.00032866,7]
[331692548,1720649439752,-188.67344,0.00032866,7]
[331692549,1720649439762,-151.0,0.00032866,7]
[331692550,1720649439772,-319.185245,0.00032866,7]
[331692551,1720649439781,-319.185245,0.00032866,7]
[331692552,1720649439791,-1079.677186,0.00032866,7]
[331692553,1720649439801,-1079.677186,0.00032866,7]
[331692554,1720649439811,-16738.20104803,0.00032876,5]
[331692555,1720649439820,-172931.02044191,0.00032876,3]
[331692556,1720649440036,-1514.53866723,0.00032876,3]
[331692557,1720649440052,-33518.52761826,0.00032876,3]
[331692558,1720649440230,-3490.48560076,0.00026848,2]
[331692559,1720649440240,-151.0,0.00032505,7]
[331692560,1720649440250,-151.0,0.00032505,7]
[331692561,1720649440259,-3770.03899194,0.00032876,3]
[331692569,1720649442898,-384.435735,0.00032756,3]
[331692570,1720649442909,-377.12535047,0.00032756,3]
[331692571,1720649442938,-6203.74891453,0.00032756,3]
[331692572,1720649442947,-2965.69099675,0.00032876,3]
[331692573,1720649442958,-5223.75973211,0.00032876,3]
[331692574,1720649442968,-284.6000077,0.00032876,3]
[331692575,1720649442977,-5611.49557264,0.00032876,4]
[331692576,1720649442986,-1068.29,0.00032876,7]
[331692577,1720649442995,-151.0,0.00032876,7]
[331692579,1720649443005,-500.0,0.00032876,7]
[331692580,1720649443013,-500.0,0.00032876,7]
[331692581,1720649443023,-500.0,0.00032876,7]
[331692582,1720649443032,-500.0,0.00032876,7]
[331692583,1720649443041,-1722.91,0.00032876,4]
[331692584,1720649443050,-500.0,0.00032876,7]
[331692585,1720649443060,-510.76347615,0.00032876,7]
[331692586,1720649443069,-446.45355739,0.00032876,7]
[331692587,1720649443078,-500.0,0.00032876,7]
[331692588,1720649443087,-504.49720481,0.00032876,7]
[331692589,1720649443097,-436.0976372,0.00032876,7]
[331692590,1720649443106,-373.74386389,0.00032876,7]
[331692591,1720649443115,-500.0,0.00032876,2]
[331692592,1720649443123,-500.0,0.00032876,7]
[331692593,1720649443133,-523.87512682,0.00032876,7]
[331692594,1720649443143,-510.71627223,0.00032876,7]
[331692595,1720649443152,-500.0,0.00032876,7]
[331692596,1720649443162,-299.53108873,0.00032876,7]
[331692597,1720649443174,-200.46891127,0.00032876,7]
[331692598,1720649443183,-500.0,0.00032876,7]
[331692599,1720649443193,-500.0,0.00032876,7]
[331692600,1720649443203,-512.70080887,0.00032876,7]
[331692601,1720649443212,-196.34720841,0.00032876,7]
[331692602,1720649443223,-500.0,0.00032876,7]
[331692603,1720649443233,-515.87197613,0.00032876,7]
[331692604,1720649443244,-586.51,0.00032876,7]
[331692605,1720649443253,-251.40571538,0.00032876,7]
[331692606,1720649443263,-500.0,0.00032876,7]
[331692607,1720649443272,-500.0,0.00032876,7]
[331692608,1720649443281,-500.0,0.00032876,7]
[331692609,1720649443292,-511.40716072,0.00032876,7]
[331692610,1720649443301,-500.0,0.00032876,7]
[331692611,1720649443310,-473.38967444,0.00032876,7]
[331692612,1720649443319,-500.0,0.00032876,7]
[331692613,1720649443328,-183.70757778,0.00032876,7]
[331692627,1720649446020,-268.65851187,0.00029813,2]
[331692628,1720649446030,-500.0,0.00029987,2]
[331692629,1720649446040,-272.40217409,0.00029987,2]
[331692630,1720649446049,-500.0,0.00029987,2]
[331692631,1720649446059,-151.0,0.00032272,7]
[331692632,1720649446068,-151.0,0.00032272,7]